lending/lending_fUSD_20250409
["ID","MTS","AMOUNT","RATE_DAILY","PERIOD"]
[357597992,1744224645808,-151.0,0.00027304,7]
[357597993,1744224645817,-151.0,0.00027397,7]
[357597994,1744224645827,-151.0,0.00027397,7]
[357597995,1744224645839,-151.0,0.00027397,7]
[357597996,1744224645850,-151.0,0.00027397,7]
[357597997,1744224645860,-151.0,0.00027397,7]
[357597998,1744224645869,-151.0,0.00027397,7]
[357597999,1744224645878,-317.643798,0.00027397,7]
[357598000,1744224645887,-317.643798,0.00027397,7]
[357598001,1744224645897,-150.0,0.00027397,2]
[357598002,1744224645907,-151.0,0.00027397,7]
[357598003,1744224645916,-163.72190173,0.00027397,2]
[357598004,1744224645926,-1229.498175,0.00027397,7]
[357598005,1744224645935,-1229.498175,0.00027397,7]
[357598006,1744224645945,-200.225021,0.00027397,7]
[357598007,1744224645955,-200.225021,0.00027397,7]
[357598008,1744224645966,-151.0,0.00027397,7]
[357598009,1744224645976,-411.92,0.00027397,2]
[357598010,1744224645985,-151.0,0.00027397,7]
[357598011,1744224645995,-151.0,0.00027397,7]
[357598012,1744224646004,-151.0,0.00027397,7]
[357598013,1744224646013,-318.909339,0.00027397,7]
[357598014,1744224646022,-318.909339,0.00027397,7]
[357598015,1744224646031,-999.0,0.00027397,2]
[357598016,1744224646040,-711.0,0.00027397,2]
[357598017,1744224646050,-500.0,0.00027397,2]
[357598018,1744224646059,-5949.479192,0.00027397,7]
[357598019,1744224646068,-5949.479192,0.00027397,7]
[357598020,1744224646077,-151.0,0.00027397,7]
[357598022,1744224646086,-166.781901,0.00027397,7]
[357598023,1744224646095,-500.0,0.00027397,2]
[357598024,1744224646104,-166.781901,0.00027397,7]
[357598025,1744224646113,-838.0,0.00027397,2]
[357598026,1744224646122,-500.0,0.00027397,2]
[357598027,1744224646132,-500.0,0.00027397,2]
[357598028,1744224646141,-500.0,0.00027397,2]
[357598029,1744224646150,-500.0,0.00027397,2]
[357598030,1744224646159,-150.0,0.00027397,2]
[357598031,1744224646169,-500.0,0.00027397,2]
[357598032,1744224646178,-151.0,0.00027397,7]
[357598033,1744224646188,-369.31631,0.00027397,7]
[357598035,1744224646199,-369.31631,0.00027397,7]
[357598036,1744224646208,-746.797042,0.00027397,7]
[357598038,1744224646218,-746.797042,0.00027397,7]
[357598039,1744224646227,-603.0,0.00027397,2]
[357598040,1744224646236,-299.70169523,0.00027397,2]
[357598041,1744224646245,-500.0,0.00027397,2]
[357598042,1744224646254,-150.0,0.00027397,2]
[357598044,1744224646263,-500.0,0.00027397,2]
[357598045,1744224646272,-150.0,0.00027397,2]
[357598046,1744224646281,-150.0,0.00027397,2]
[357598047,1744224646290,-500.0,0.00027397,2]
[357598048,1744224646299,-151.0,0.00027397,7]
[357598049,1744224646308,-151.0,0.00027397,7]
[357598050,1744224646318,-500.0,0.00027397,2]
[357598052,1744224646327,-500.0,0.00027397,2]
[357598053,1744224646336,-431.98322223,0.00027397,2]
[357598054,1744224646345,-688.0,0.00027397,2]
[357598055,1744224646354,-150.0,0.00027397,2]
[357598056,1744224646363,-500.0,0.00027397,2]
[357598057,1744224646372,-150.0,0.00027397,2]
[357598058,1744224646382,-500.0,0.00027397,2]
[357598059,1744224646391,-500.0,0.00027397,2]
[357598060,1744224646401,-150.0,0.00027397,2]
[357598061,1744224646410,-150.0,0.00027397,2]
[357598062,1744224646419,-150.0,0.00027397,2]
[357598063,1744224646429,-500.0,0.00027397,2]
[357598064,1744224646438,-500.0,0.00027397,2]
[357598065,1744224646447,-500.0,0.00027397,2]
[357598066,1744224646457,-500.0,0.00027397,2]
[357598067,1744224646469,-151.0,0.00027397,7]
[357598068,1744224646479,-151.0,0.00027397,7]
[357598069,1744224646489,-493.953632,0.00027397,7]
[357598070,1744224646498,-151.0,0.00027397,7]
[357598071,1744224646507,-151.0,0.00027397,7]
[357598072,1744224646516,-151.0,0.00027397,7]
[357598073,1744224646525,-151.0,0.00027397,7]
[357598074,1744224646535,-151.0,0.00027397,7]
[357598075,1744224646544,-151.0,0.00027397,7]
[357598076,1744224646553,-151.0,0.00027397,7]
[357598077,1744224646562,-151.0,0.00027397,7]
[357598078,1744224646572,-2173.39,0.00027397,2]
[357598079,1744224646581,-151.0,0.00027397,7]
[357598080,1744224646590,-220.194195,0.00027397,7]
[357598081,1744224646599,-356.31992025,0.000274,2]
[357598082,1744224646609,-253.79654,0.00027424,7]
[357598083,1744224646618,-151.0,0.00027424,7]
[357598084,1744224646627,-151.0,0.00027424,7]
[357598085,1744224646636,-174.477373,0.00027424,7]
[357598086,1744224646645,-174.477373,0.00027424,7]
[357598087,1744224646655,-151.0,0.00027424,7]
[357598088,1744224646664,-225.23487,0.00027424,7]
[357598089,1744224646674,-151.0,0.00027424,7]
[357598090,1744224646683,-963.234939,0.00027424,7]
[357598091,1744224646693,-963.234939,0.00027424,7]
[357598092,1744224646703,-214.464694,0.00027424,7]
[357598093,1744224646714,-214.464694,0.00027424,7]
[357598103,1744224646908,-151.361839,0.00027424,7]
[357598104,1744224646932,-151.361839,0.00027424,7]
[357598105,1744224646942,-151.0,0.00027424,7]
[357598107,1744224646952,-150.0,0.00027424,2]
[357598108,1744224646965,-999.0,0.00027424,2]
[357598109,1744224646975,-711.0,0.00027424,2]
[357598110,1744224646986,-500.0,0.00027424,2]
[357598111,1744224646997,-643.10320481,0.00027424,2]
[357598112,1744224647006,-838.0,0.00027424,2]
[357598113,1744224647016,-500.0,0.00027424,2]
[357598114,1744224647026,-777.92058837,0.00027424,2]
[357598115,1744224647036,-500.0,0.00027424,2]
[357598116,1744224647046,-514.36663051,0.00027424,2]
[357598117,1744224647056,-275.04072212,0.00027424,2]
[357598118,1744224647066,-500.0,0.00027424,2]
[357598119,1744224647075,-603.0,0.00027424,2]
[357598120,1744224647085,-500.0,0.00027424,2]
[357598121,1744224647095,-500.0,0.00027424,2]
[357598122,1744224647105,-165.50234576,0.00027424,2]
[357598123,1744224647114,-500.0,0.00027424,2]
[357598124,1744224647124,-688.0,0.00027424,2]
[357598125,1744224647134,-150.0,0.00027424,2]
[357598126,1744224647143,-500.0,0.00027424,2]
[357598127,1744224647153,-150.0,0.00027424,2]
[357598128,1744224647163,-500.0,0.00027424,2]
[357598129,1744224647172,-500.0,0.00027424,2]
[357598130,1744224647182,-150.0,0.00027424,2]
[357598131,1744224647191,-150.0,0.00027424,2]
[357598132,1744224647201,-150.0,0.00027424,2]
[357598133,1744224647212,-500.0,0.00027424,2]
[357598134,1744224647221,-500.0,0.00027424,2]
[357598135,1744224647231,-500.0,0.00027424,2]
[357598136,1744224647240,-899.77812698,0.00027424,2]
[357598137,1744224647250,-150.0,0.00027452,2]
[357598138,1744224647259,-999.0,0.00027452,2]
[357598139,1744224647269,-711.0,0.00027452,2]
[357598140,1744224647278,-995.24153773,0.00027452,2]
[357598141,1744224647288,-838.0,0.00027452,2]
[357598142,1744224647298,-500.0,0.00027452,2]
[357598143,1744224647307,-643.53862959,0.00027452,2]
[357598144,1744224647317,-500.0,0.00027452,2]
[357598145,1744224647327,-603.0,0.00027452,2]
[357598146,1744224647338,-500.0,0.00027452,2]
[357598147,1744224647348,-500.0,0.00027452,2]
[357598148,1744224647358,-500.0,0.00027452,2]
[357598149,1744224647368,-688.0,0.00027452,2]
[357598150,1744224647378,-150.0,0.00027452,2]
[357598151,1744224647388,-500.0,0.00027452,2]
[357598152,1744224647398,-150.0,0.00027452,2]
[357598153,1744224647407,-500.0,0.00027452,2]
[357598154,1744224647416,-500.0,0.00027452,2]
[357598155,1744224647426,-150.0,0.00027452,2]
[357598156,1744224647435,-196.85815236,0.00027452,2]
[357598157,1744224647445,-192.67383401,0.00027452,2]
[357598158,1744224647454,-500.0,0.00027452,2]
[357598159,1744224647466,-500.0,0.00027452,2]
[357598160,1744224647475,-997.83516125,0.00027452,2]
[357598161,1744224647485,-637.947231,0.00027479,7]
[357598162,1744224647494,-637.947231,0.00027479,7]
[357598163,1744224647504,-150.0,0.00027479,2]
[357598164,1744224647514,-999.0,0.00027479,2]
[357598165,1744224647523,-711.0,0.00027479,2]
[357598166,1744224647533,-838.0,0.00027479,2]
[357598167,1744224647542,-500.0,0.00027479,2]
[357598168,1744224647551,-613.56627816,0.00027479,2]
[357598169,1744224647564,-603.0,0.00027479,2]
[357598170,1744224647574,-776.64905278,0.00027479,2]
[357598171,1744224647584,-500.0,0.00027479,2]
[357598172,1744224647593,-500.0,0.00027479,2]
[357598173,1744224647603,-688.0,0.00027479,2]
[357598174,1744224647612,-150.0,0.00027479,2]
[357598175,1744224647622,-500.0,0.00027479,2]
[357598176,1744224647631,-150.0,0.00027479,2]
[357598177,1744224647641,-500.0,0.00027479,2]
[357598178,1744224647650,-500.0,0.00027479,2]
[357598179,1744224647660,-249.95197694,0.00027479,2]
[357598180,1744224647670,-500.0,0.00027479,2]
[357598181,1744224647680,-500.0,0.00027479,2]
[357598182,1744224647690,-171.0165566,0.00027507,2]
[357598183,1744224647700,-999.0,0.00027507,2]
[357598184,1744224647710,-711.0,0.00027507,2]
[357598185,1744224647720,-838.0,0.00027507,2]
[357598186,1744224647731,-500.0,0.00027507,2]
[357598187,1744224647741,-603.0,0.00027507,2]
[357598188,1744224647752,-500.0,0.00027507,2]
[357598189,1744224647766,-500.0,0.00027507,2]
[357598190,1744224647777,-688.0,0.00027507,2]
[357598191,1744224647787,-249.46611034,0.00027507,2]
[357598192,1744224647799,-500.0,0.00027507,2]
[357598193,1744224647810,-249.78459325,0.00027507,2]
[357598194,1744224647820,-500.0,0.00027507,2]
[357598195,1744224647831,-500.0,0.00027507,2]
[357598196,1744224647841,-500.0,0.00027507,2]
[357598197,1744224647851,-500.0,0.00027507,2]
[357598198,1744224647860,-999.0,0.00027534,2]
[357598199,1744224647869,-711.0,0.00027534,2]
[357598200,1744224647878,-838.0,0.00027534,2]
[357598201,1744224647888,-500.0,0.00027534,2]
[357598203,1744224647896,-603.0,0.00027534,2]
[357598205,1744224647906,-500.0,0.00027534,2]
[357598206,1744224647915,-500.0,0.00027534,2]
[357598208,1744224647925,-688.0,0.00027534,2]
[357598210,1744224647934,-500.0,0.00027534,2]
[357598211,1744224647944,-500.0,0.00027534,2]
[357598212,1744224647954,-786.22575512,0.00027534,2]
[357598213,1744224647964,-500.0,0.00027534,2]
[357598214,1744224647974,-500.0,0.00027534,2]
[357598215,1744224647983,-999.0,0.00027561,2]
[357598216,1744224647993,-711.0,0.00027561,2]
[357598217,1744224648003,-838.0,0.00027561,2]
[357598218,1744224648012,-500.0,0.00027561,2]
[357598219,1744224648022,-603.0,0.00027561,2]
[357598220,1744224648032,-500.0,0.00027561,2]
[357598221,1744224648041,-500.0,0.00027561,2]
[357598222,1744224648051,-688.0,0.00027561,2]
[357598223,1744224648060,-500.0,0.00027561,2]
[357598224,1744224648070,-730.61173295,0.00027561,2]
[357598225,1744224648080,-500.0,0.00027561,2]
[357598226,1744224648090,-517.6933534,0.00027561,2]
[357598227,1744224648099,-654.95429363,0.00027567,2]
[357598228,1744224648109,-999.0,0.00027589,2]
[357598229,1744224648118,-711.0,0.00027589,2]
[357598230,1744224648128,-838.0,0.00027589,2]
[357598231,1744224648138,-916.76187876,0.00027589,2]
[357598232,1744224648147,-603.0,0.00027589,2]
[357598233,1744224648157,-500.0,0.00027589,2]
[357598234,1744224648167,-500.0,0.00027589,2]
[357598235,1744224648177,-688.0,0.00027589,2]
[357598236,1744224648187,-507.49509777,0.00027589,2]
[357598237,1744224648196,-537.14114017,0.00027589,2]
[357598238,1744224648206,-202.376714,0.00027616,7]
[357598239,1744224648216,-912.748335,0.00027616,7]
[357598240,1744224648226,-912.748335,0.00027616,7]
[357598241,1744224648237,-745.180852,0.00027616,7]
[357598242,1744224648246,-745.180852,0.00027616,7]
[357598243,1744224648256,-999.0,0.00027616,2]
[357598244,1744224648265,-711.0,0.00027616,2]
[357598245,1744224648275,-838.0,0.00027616,2]
[357598246,1744224648284,-603.0,0.00027616,2]
[357598247,1744224648294,-500.0,0.00027616,2]
[357598248,1744224648304,-656.81077614,0.00027616,2]
[357598249,1744224648314,-688.0,0.00027616,2]
[357598250,1744224648323,-999.0,0.00027644,2]
[357598251,1744224648332,-711.0,0.00027644,2]
[357598252,1744224648342,-838.0,0.00027644,2]
[357598253,1744224648352,-603.0,0.00027644,2]
[357598254,1744224648362,-500.0,0.00027644,2]
[357598255,1744224648371,-688.0,0.00027644,2]
[357598256,1744224648381,-151.0,0.00027644,7]
[357598257,1744224648391,-151.0,0.00027644,7]
[357598258,1744224648401,-151.0,0.00027644,7]
[357598259,1744224648411,-209.430364,0.00027644,7]
[357598260,1744224648421,-209.430364,0.00027644,7]
[357598261,1744224648431,-1139.13915043,0.00027653,2]
[357598262,1744224648440,-999.0,0.00027671,2]
[357598263,1744224648450,-711.0,0.00027671,2]
[357598264,1744224648460,-838.0,0.00027671,2]
[357598265,1744224648469,-603.0,0.00027671,2]
[357598266,1744224648479,-995.59680159,0.00027671,2]
[357598267,1744224648488,-688.0,0.00027671,2]
[357598268,1744224648498,-378.53578,0.00027671,7]
[357598269,1744224648507,-378.53578,0.00027671,7]
[357598270,1744224648516,-999.0,0.00027698,2]
[357598271,1744224648526,-711.0,0.00027698,2]
[357598272,1744224648536,-838.0,0.00027698,2]
[357598273,1744224648546,-603.0,0.00027698,2]
[357598274,1744224648556,-688.0,0.00027698,2]
[357598275,1744224648565,-223.38,0.00027704,2]
[357598276,1744224648575,-999.0,0.00027726,2]
[357598277,1744224648585,-711.0,0.00027726,2]
[357598278,1744224648594,-838.0,0.00027726,2]
[357598279,1744224648603,-603.0,0.00027726,2]
[357598280,1744224648613,-688.0,0.00027726,2]
[357598281,1744224648622,-282.92142739,0.00027735,2]
[357598282,1744224648632,-1381.14746597,0.00027735,2]
[357598283,1744224648650,-6560.46267895,0.00027735,2]
[357598284,1744224648663,-587.71441471,0.00027735,2]
[357598285,1744224648679,-17276.11218765,0.00027735,2]
[357598286,1744224648690,-155.98517,0.00027753,7]
[357598287,1744224648701,-5949.479192,0.00027753,7]
[357598288,1744224648712,-5949.479192,0.00027753,7]
[357598289,1744224648722,-151.0,0.00027753,7]
[357598290,1744224648733,-137.61241595,0.00027753,7]
[357598291,1744224648759,-29.16948505,0.00027753,7]
[357598292,1744224648769,-166.781901,0.00027753,7]
[357598293,1744224648780,-151.0,0.00027753,7]
[357598294,1744224648791,-369.31631,0.00027753,7]
[357598295,1744224648800,-369.31631,0.00027753,7]
[357598296,1744224648811,-151.0,0.00027753,7]
[357598297,1744224648821,-999.0,0.00027753,2]
[357598298,1744224648831,-711.0,0.00027753,2]
[357598299,1744224648841,-838.0,0.00027753,2]
[357598300,1744224648851,-603.0,0.00027753,2]
[357598301,1744224648861,-553.57747349,0.00027753,2]
[357598302,1744224648873,-134.42252651,0.00027753,2]
[357598303,1744224648883,-1000.0,0.00027762,2]
[357598304,1744224648894,-517.9774735,0.00027781,2]
[357598305,1744224648906,-481.0225265,0.00027781,2]
[357598306,1744224648916,-711.0,0.00027781,2]
[357598307,1744224648926,-838.0,0.00027781,2]
[357598308,1744224648936,-603.0,0.00027781,2]
[357598309,1744224648946,-688.0,0.00027781,2]
[357598310,1744224648955,-171.452403,0.00027781,7]
[357598311,1744224648965,-151.0,0.00027781,7]
[357598312,1744224648975,-318.909339,0.00027781,7]
[357598313,1744224648984,-318.909339,0.00027781,7]
[357598314,1744224648994,-999.0,0.00027808,2]
[357598315,1744224649003,-711.0,0.00027808,2]
[357598316,1744224649013,-838.0,0.00027808,2]
[357598317,1744224649023,-603.0,0.00027808,2]
[357598318,1744224649032,-688.0,0.00027808,2]
[357598319,1744224649042,-477.92110742,0.0002783,15]
[357598320,1744224649053,-500.0,0.00027834,2]
[357598321,1744224649063,-500.0,0.00027834,2]
[357598322,1744224649074,-500.0,0.00027834,2]
[357598323,1744224649084,-500.0,0.00027834,2]
[357598324,1744224649094,-746.797042,0.00027835,7]
[357598325,1744224649104,-746.797042,0.00027835,7]
[357598326,1744224649115,-151.0,0.00027835,7]
[357598327,1744224649124,-963.234939,0.00027835,7]
[357598328,1744224649134,-1000.0,0.00027835,28]
[357598329,1744224649144,-963.234939,0.00027835,7]
[357598330,1744224649154,-1000.0,0.00027835,28]
[357598331,1744224649164,-1000.0,0.00027835,28]
[357598332,1744224649174,-1000.0,0.00027835,28]
[357598333,1744224649184,-1000.0,0.00027835,28]
[357598334,1744224649194,-1000.0,0.00027835,28]
[357598335,1744224649204,-1000.0,0.00027835,28]
[357598336,1744224649217,-1000.0,0.00027835,28]
[357598337,1744224649226,-1000.0,0.00027835,28]
[357598338,1744224649236,-1000.0,0.00027835,28]
[357598339,1744224649246,-647.12665908,0.00027835,28]
[357598340,1744224649259,-352.87334092,0.00027835,28]
[357598341,1744224649268,-54.76665704,0.00027835,28]
[357598342,1744224649288,-945.23334296,0.00027835,28]
[357598343,1744224649297,-1000.0,0.00027835,28]
[357598344,1744224649307,-1000.0,0.00027835,28]
[357598345,1744224649317,-1000.0,0.00027835,28]
[357598346,1744224649499,-1000.0,0.00027835,28]
[357598347,1744224649509,-1000.0,0.00027835,28]
[357598348,1744224649519,-1000.0,0.00027835,28]
[357598349,1744224649530,-1000.0,0.00027835,28]
[357598350,1744224649540,-49.04827458,0.00027835,7]
[357598351,1744224649552,-1042.82955653,0.00027835,7]
[357598352,1744224649564,-359.763837,0.00027835,7]
[357598353,1744224649581,-507.64481284,0.000274,2]
[357598354,1744224649686,-406.35518716,0.000274,2]
[357598355,1744224649698,-548.35833189,0.00027835,7]
[357598356,1744224649707,-1000.0,0.00027835,28]
[357598357,1744224649720,-2000.0,0.00027835,7]
[357598358,1744224649730,-1000.0,0.00027835,28]
[357598359,1744224649739,-2000.0,0.00027835,7]
[357598360,1744224649750,-1000.0,0.00027835,28]
[357598361,1744224649761,-1000.0,0.00027835,28]
[357598362,1744224649771,-2000.0,0.00027835,7]
[357598363,1744224649781,-1000.0,0.00027835,28]
[357598364,1744224649790,-2000.0,0.00027835,7]
[357598365,1744224649800,-1000.0,0.00027835,28]
[357598366,1744224649811,-2000.0,0.00027835,7]
[357598367,1744224649822,-1000.0,0.00027835,28]
[357598368,1744224649832,-1000.0,0.00027835,28]
[357598369,1744224649843,-2000.0,0.00027835,7]
[357598370,1744224649853,-1000.0,0.00027835,28]
[357598371,1744224649862,-2000.0,0.00027835,7]
[357598372,1744224649872,-1000.0,0.00027835,28]
[357598373,1744224649882,-2000.0,0.00027835,7]
[357598374,1744224649891,-1000.0,0.00027835,28]
[357598375,1744224649901,-2000.0,0.00027835,7]
[357598376,1744224649910,-2000.0,0.00027835,7]
[357598377,1744224649920,-1000.0,0.00027835,28]
[357598378,1744224649930,-2000.0,0.00027835,7]
[357598379,1744224649940,-1000.0,0.00027835,28]
[357598380,1744224649949,-2000.0,0.00027835,7]
[357598381,1744224649959,-1000.0,0.00027835,28]
[357598382,1744224649972,-1000.0,0.00027835,28]
[357598383,1744224649983,-1000.0,0.00027835,28]
[357598384,1744224649992,-898.13014395,0.00027835,7]
[357598385,1744224650010,-1101.86985605,0.00027835,7]
[357598386,1744224650019,-1000.0,0.00027835,28]
[357598387,1744224650028,-2000.0,0.00027835,7]
[357598388,1744224650038,-1000.0,0.00027835,28]
[357598389,1744224650047,-1662.516331,0.00027835,7]
[357598390,1744224650056,-1000.0,0.00027835,28]
[357598391,1744224650065,-1000.0,0.00027835,28]
[357598392,1744224650074,-1000.0,0.00027835,28]
[357598393,1744224650083,-1000.0,0.00027835,28]
[357598394,1744224650092,-612.054132,0.00027835,28]
[357598395,1744224650101,-214.464694,0.00027835,7]
[357598396,1744224650111,-214.464694,0.00027835,7]
[357598397,1744224650119,-151.361839,0.00027835,7]
[357598398,1744224650129,-151.361839,0.00027835,7]
[357598399,1744224650138,-152.791786,0.00027835,7]
[357598400,1744224650148,-999.0,0.00027835,2]
[357598401,1744224650157,-711.0,0.00027835,2]
[357598402,1744224650165,-838.0,0.00027835,2]
[357598403,1744224650175,-603.0,0.00027835,2]
[357598404,1744224650184,-688.0,0.00027835,2]
[357598405,1744224650193,-687.93107539,0.00027863,2]
[357598406,1744224650204,-311.06892461,0.00027863,2]
[357598407,1744224650215,-711.0,0.00027863,2]
[357598408,1744224650224,-838.0,0.00027863,2]
[357598409,1744224650234,-603.0,0.00027863,2]
[357598410,1744224650243,-688.0,0.00027863,2]
[357598411,1744224650251,-999.0,0.0002789,2]
[357598412,1744224650260,-711.0,0.0002789,2]
[357598413,1744224650270,-838.0,0.0002789,2]
[357598414,1744224650279,-603.0,0.0002789,2]
[357598415,1744224650288,-688.0,0.0002789,2]
[357598416,1744224650297,-1015.14838358,0.00027918,2]
[357598417,1744224650306,-717.71917199,0.00027918,2]
[357598418,1744224650315,-852.39461923,0.00027918,2]
[357598419,1744224650323,-299.73759569,0.00027918,2]
[357598420,1744224650334,-297.39096103,0.00027918,2]
[357598421,1744224650345,-17.96089602,0.00027918,2]
[357598422,1744224650354,-703.0,0.00027918,2]
[357598423,1744224650364,-162.48,0.00028,2]
[357598424,1744224650373,-1000.0,0.00028038,2]
[357598425,1744224650382,-6753.58766981,0.0002804,2]
[357598426,1744224650391,-151.0,0.0002804,7]
[357598427,1744224650400,-204.430681,0.0002804,7]
[357598428,1744224650409,-204.430681,0.0002804,7]
[357598429,1744224650418,-151.0,0.0002804,7]
[357598430,1744224650427,-174.477373,0.0002804,7]
[357598431,1744224650436,-174.477373,0.0002804,7]
[357598432,1744224650445,-151.0,0.0002804,7]
[357598433,1744224650454,-151.0,0.0002804,7]
[357598434,1744224650463,-151.0,0.0002804,7]
[357598435,1744224650474,-151.0,0.0002804,7]
[357598436,1744224650484,-1000.0,0.00028103,2]
[357598437,1744224650493,-2666.28,0.00028122,2]
[357598438,1744224650502,-583.43,0.00028223,2]
[357598439,1744224650511,-11860.15319382,0.00028294,2]
[357598440,1744224650520,-150.0,0.00028376,2]
[357598441,1744224650529,-150.0,0.00028376,2]
[357598442,1744224650538,-156.286,0.00028376,2]
[357598443,1744224650547,-150.317,0.00028376,2]
[357598444,1744224650555,-194.72792766,0.00028572,2]
[357598445,1744224650564,-257.91778498,0.00028572,2]
[357598446,1744224650573,-637.947231,0.00028767,7]
[357598447,1744224650582,-637.947231,0.00028767,7]
[357598448,1744224650591,-4783.714,0.00028767,20]
[357598449,1744224650599,-190.564,0.00028767,20]
[357598450,1744224650608,-411.92,0.00028767,2]
[357598451,1744224650618,-2173.39,0.00028767,2]
[357598452,1744224650626,-151.0,0.00028777,7]
[357598453,1744224650635,-151.0,0.00028777,7]
[357598454,1744224650644,-1229.498175,0.00028777,7]
[357598455,1744224650653,-1229.498175,0.00028777,7]
[357598456,1744224650662,-200.225021,0.00028777,7]
[357598457,1744224650671,-200.225021,0.00028777,7]
[357598458,1744224650680,-151.0,0.00028777,7]
[357598459,1744224650689,-151.0,0.00028783,7]
[357598460,1744224650698,-500.0,0.00028788,2]
[357598461,1744224650707,-500.0,0.00028788,2]
[357598462,1744224650717,-500.0,0.00028788,2]
[357598463,1744224650728,-500.0,0.00028788,2]
[357598464,1744224650737,-500.0,0.00028788,2]
[357598465,1744224650747,-500.0,0.00028788,2]
[357598466,1744224650756,-151.0,0.00028789,7]
[357598467,1744224650768,-151.0,0.00028789,7]
[357598468,1744224650777,-151.0,0.00028789,7]
[357598469,1744224650786,-151.0,0.00028789,7]
[357598470,1744224650796,-1714.6741,0.00028789,7]
[357598471,1744224650805,-1714.6741,0.00028789,7]
[357598472,1744224650814,-151.0,0.00028789,7]
[357598473,1744224650823,-493.953632,0.00028789,7]
[357598474,1744224650834,-202.376714,0.00028789,7]
[357598475,1744224650843,-202.376714,0.00028789,7]
[357598476,1744224650852,-912.748335,0.00028789,7]
[357598477,1744224650861,-912.748335,0.00028789,7]
[357598478,1744224650871,-745.180852,0.00028789,7]
[357598479,1744224650880,-745.180852,0.00028789,7]
[357598480,1744224650889,-500.0,0.00029,2]
[357598481,1744224650898,-150.0,0.00029097,2]
[357598482,1744224650907,-200.0,0.000291,2]
[357598483,1744224650916,-150.0,0.00029161,2]
[357598484,1744224650925,-151.0,0.00029194,7]
[357598485,1744224650934,-151.0,0.00029194,7]
[357598486,1744224650944,-150.0,0.00029201,2]
[357598487,1744224650953,-150.0,0.00029212,2]
[357598488,1744224650963,-150.0,0.00029306,2]
[357598489,1744224650974,-1000.0,0.00029312,2]
[357598490,1744224650983,-150.0,0.00029314,2]
[357598491,1744224650993,-150.0,0.00029324,2]
[357598492,1744224651002,-150.0,0.00029328,2]
[357598493,1744224651012,-150.0,0.00029345,2]
[357598494,1744224651021,-150.0,0.00029365,2]
[357598495,1744224651030,-1000.0,0.00029365,2]
[357598496,1744224651039,-150.0,0.00029368,2]
[357598497,1744224651049,-150.0,0.00029381,2]
[357598498,1744224651058,-1000.0,0.00029383,2]
[357598499,1744224651067,-150.0,0.00029406,2]
[357598500,1744224651076,-500.0,0.00029407,7]
[357598501,1744224651085,-500.0,0.00029407,7]
[357598502,1744224651098,-289.16,0.00029407,7]
[357598503,1744224651107,-500.0,0.00029407,7]
[357598504,1744224651116,-150.0,0.00029407,2]
[357598505,1744224651126,-150.0,0.00029424,2]
[357598506,1744224651135,-187.36489336,0.00029425,2]
[357598507,1744224651144,-150.0,0.00029433,2]
[357598508,1744224651153,-150.0,0.00029443,2]
[357598509,1744224651162,-3384.8305511,0.00029468,4]
[357598510,1744224651172,-151.0,0.00029468,7]